[Event "Bergen Grand Prix 2019"]
[Site "Bergen"]
[Date "2019.11.17"]
[Round "4.6"]
[White "Rasmussen, Jonas H"]
[Black "Flatebo, Hallvard Haug"]
[Result "1/2-1/2"]
[ECO "A89"]
[WhiteElo "1951"]
[BlackElo "1837"]
[Annotator "NA RC"]
[PlyCount "92"]
[EventDate "2019.11.15"]
[EventType "swiss"]
[EventCountry "NOR"]
[SourceTitle "playchess.com"]
[Source "ChessBase"]
[SourceQuality "1"]
[TimeControl "40/5400:1800"]

1. d4 {[%emt 0:00:03]} f5 {[%emt 0:00:10]} 2. Nf3 {[%emt 0:00:13]} Nf6 {[%emt 0:00:06]} 3. g3 {[%emt 0:00:16]} d6 {[%emt 0:00:05]} 4. Bg2 {[%emt 0:00:08]} g6 {[%emt 0:00:04]} 5. O-O {[%emt 0:00:27]} Bg7 {[%emt 0:00:04]} 6. c4 {[%emt 0:00:29]} O-O {[%emt 0:00:10]} 7. Nc3 {[%emt 0:00:24]} Nc6 {[%emt 0:00:19]} 8. d5 {[%emt 0:10:45]} Ne5 {[%emt 0:00:06]} 9. Qb3 {[%emt 0:02:15]} Kh8 {[%emt 0:03:32] A89: Dutch Defence: Leningrad System: 5 Nf3 0-0 6 0-0 d6 7 Nc3 Nc6} (9... Ned7 10. Qc2 a5 11. Bg5 Nc5 12. Rad1 Bd7 13. Nd4 Qe8 14. Rfe1 Ng4 15. h3 h6 16. Bc1 Nf6 17. e4 fxe4 18. Nxe4 Nfxe4 19. Bxe4 Bxh3 20. Bxg6 {1-0 (46) Illescas Cordoba,M (2618)-Rapport,R (2704) Tromsoe 2014}) 10. Nd4 {[%emt 0:02:03]} a5 {[%emt 0:10:01]} 11. e3 $146 {[%emt 0:05:46]} (11. Rd1 $16) ({Predecessor:} 11. f4 Neg4 12. Ne6 Bxe6 13. dxe6 Rb8 14. h3 Nh6 15. Be3 {1-0 (40) Joksic,S (2325)-Orlov,P (2390) Pula 1982}) 11... Bd7 {[%emt 0:04:03]} 12. Nce2 {[%emt 0:04:07]} a4 {[%emt 0:02:44]} 13. Qc2 {[%emt 0:00:42]} c5 {[%emt 0:00:37]} 14. Nf3 {[%emt 0:07:31]} Nxf3+ {[%emt 0:02:44]} 15. Bxf3 {[%emt 0:00:09]} b5 {[%emt 0:03:01]} 16. cxb5 {[%emt 0:03:41]} Bxb5 {[%emt 0:00:42]} 17. Rd1 {[%emt 0:01:02] [#]} Ne4 $1 {[%emt 0:05:57]} 18. Nc3 {[%emt 0:06:37]} Nxc3 {[%emt 0:01:27]} 19. bxc3 {[%emt 0:00:06]} a3 {[%emt 0:00:32]} 20. Re1 {[%emt 0:02:27]} Qa5 {[%emt 0:03:46]} 21. Bd2 {[%emt 0:00:41]} Bc4 {[%emt 0:00:40]} 22. Be2 {[%emt 0:06:21]} Bxe2 {[%emt 0:08:26]} 23. Rxe2 {[%emt 0:00:07]} Rab8 {[%emt 0:03:54]} 24. c4 {[%emt 0:01:25]} Qb6 {[%emt 0:07:39]} (24... Qa6 $5 25. Bc3 $8 Rb2 26. Bxg7+ Kxg7 27. Qc3+ Kf7 $11) 25. Bc3 {[%emt 0:00:38]} Bf6 $16 {[%emt 0:00:44]} (25... Qa6 $11 {remains equal.}) 26. Ree1 {[%emt 0:00:54]} Qa6 {[%emt 0:01:04]} 27. Bxf6+ {[%emt 0:01:47]} exf6 {[%emt 0:02:10]} 28. Rab1 {[%emt 0:04:42]} Kg7 {[%emt 0:00:36]} 29. Rb3 {[%emt 0:02:22]} Qa5 {[%emt 0:06:22]} 30. Reb1 {[%emt 0:03:15]} Rb4 {[%emt 0:00:25]} 31. Rxb4 {[%emt 0:05:17]} cxb4 {[%emt 0:00:07]} 32. Qd2 {[%emt 0:03:31]} Rb8 {[%emt 0:00:44]} 33. Rb3 {[%emt 0:01:35]} Qc5 {[%emt 0:00:42]} 34. Qd4 {[%emt 0:02:14]} Qc7 {[%emt 0:02:47]} 35. Rb1 {[%emt 0:00:30]} Qa5 {[%emt 0:02:23]} 36. e4 {[%emt 0:01:28]} b3 {[%emt 0:04:36]} 37. axb3 {[%emt 0:00:37]} a2 {[%emt 0:00:27]} 38. Ra1 {[%emt 0:01:50]} Rxb3 {[%emt 0:00:31]} 39. Qd1 {[%emt 0:00:37]} Qa3 {[%emt 0:00:22]} 40. exf5 {[%emt 0:00:45]} Qb2 {[%emt 0:00:41]} 41. Kg2 {[%emt 0:00:43]} Rc3 {[%emt 0:01:08]} 42. fxg6 {[%emt 0:03:45]} Rc2 {[%emt 0:01:13]} 43. Qe1 {[%emt 0:02:22]} Rxf2+ {[%emt 0:05:12]} 44. Qxf2 {[%emt 0:03:07]} Qxa1 {[%emt 0:00:08]} 45. gxh7 {[%emt 0:00:52]} Kxh7 {[%emt 0:01:02]} 46. Qf5+ {[%emt 0:00:11]} Kg7 {[%emt 0:00:37]} 1/2-1/2

[Event "Bergen Grand Prix 2019"]
[Site "Bergen"]
[Date "2019.11.17"]
[Round "4.7"]
[White "Hjornevik, Knut J"]
[Black "Eliseev, Sergey"]
[Result "0-1"]
[ECO "D50"]
[WhiteElo "1807"]
[BlackElo "1911"]
[Annotator "NA RC"]
[PlyCount "124"]
[EventDate "2019.11.15"]
[EventType "swiss"]
[EventCountry "NOR"]
[SourceTitle "playchess.com"]
[Source "ChessBase"]
[SourceQuality "1"]
[TimeControl "40/5400:1800"]

1. d4 {[%emt 0:00:02]} Nf6 {[%emt 0:00:07]} 2. Bg5 {[%emt 0:01:12]} e6 {[%emt 0:00:28]} 3. e3 {[%emt 0:00:25]} h6 {[%emt 0:00:09]} 4. Bh4 {[%emt 0:00:26]} d5 {[%emt 0:01:09]} 5. c4 {[%emt 0:01:24]} c6 {[%emt 0:00:33]} 6. Nc3 {[%emt 0:00:14]} Nbd7 {[%emt 0:01:59]} 7. h3 {[%emt 0:02:37]} Qa5 {[%emt 0:01:45]} 8. Bxf6 {[%emt 0:04:14]} Nxf6 {[%emt 0:00:13]} 9. a3 {[%emt 0:07:15]} Ne4 {[%emt 0:07:08]} 10. Rc1 {[%emt 0:00:00]} (10. Qa4 $11 Qxa4 11. Nxa4) 10... dxc4 {[%emt 0:05:47]} 11. Bxc4 {[%emt 0:00:00]} b5 {[%emt 0:01:52]} 12. Bd3 {[%emt 0:00:00]} Nxc3 {[%emt 0:00:18]} 13. Qd2 $1 {[%emt 0:00:00] Pin} Bd7 {[%emt 0:06:31]} (13... b4 $15 14. axb4 Qd5 15. Qxc3 Qxg2) 14. Ne2 {[%emt 0:00:00] Pin} Rb8 {[%emt 0:20:59]} 15. Nxc3 {[%emt 0:01:01]} b4 {[%emt 0:04:41]} 16. Ne4 {[%emt 0:00:14]} Qd5 $11 {[%emt 0:06:28]} 17. O-O {[%emt 0:14:11]} bxa3 {[%emt 0:01:40]} 18. bxa3 {[%emt 0:01:15]} Bxa3 {[%emt 0:01:10]} 19. Rc4 {[%emt 0:00:50]} a5 {[%emt 0:03:16]} 20. Nc5 {[%emt 0:03:48]} Bb4 {[%emt 0:00:11]} 21. Qe2 {[%emt 0:00:32]} Qd6 {[%emt 0:03:32]} 22. e4 {[%emt 0:05:52]} Bxc5 {[%emt 0:04:53]} 23. dxc5 {[%emt 0:00:06]} Qe5 {[%emt 0:01:59]} 24. Qd2 {[%emt 0:04:16]} Ra8 {[%emt 0:00:32]} 25. Bc2 {[%emt 0:00:55]} Ra7 {[%emt 0:02:19]} 26. f4 {[%emt 0:00:14]} Qc7 {[%emt 0:00:40]} 27. e5 {[%emt 0:00:07]} O-O {[%emt 0:00:17]} 28. Qd3 {[%emt 0:00:05]} g6 {[%emt 0:00:13]} 29. Qg3 {[%emt 0:03:36]} Kg7 {[%emt 0:00:55]} 30. Rd1 {[%emt 0:03:13]} Rfa8 {[%emt 0:01:08]} 31. Rcd4 {[%emt 0:01:52]} Qc8 {[%emt 0:01:02]} 32. Qh4 {[%emt 0:00:22]} Qd8 {[%emt 0:01:18]} 33. Qf6+ {[%emt 0:00:24]} Kg8 {[%emt 0:00:19]} 34. Qxd8+ {[%emt 0:01:11]} Rxd8 {[%emt 0:00:01]} 35. Ba4 {[%emt 0:00:10]} Rc7 {[%emt 0:00:10]} 36. Rd6 {[%emt 0:00:27]} Kf8 {[%emt 0:01:00]} 37. Kf2 {[%emt 0:00:34]} Ke7 {[%emt 0:00:08]} 38. Ke3 {[%emt 0:00:08]} Rb8 {[%emt 0:00:24]} 39. R1d4 {[%emt 0:01:54]} Rb2 {[%emt 0:00:27]} 40. g3 {[%emt 0:00:42]} Ra2 {[%emt 0:00:34]} 41. Kf3 {[%emt 0:30:58]} Ra3+ {[%emt 0:31:10]} 42. Kf2 {[%emt 0:00:32]} Rc3 {[%emt 0:00:00]} 43. Bd1 {[%emt 0:00:00]} Rxc5 {[%emt 0:00:00]} 44. Bf3 {[%emt 0:00:00]} Ra7 {[%emt 0:00:00]} 45. Ra4 {[%emt 0:00:00]} Rc2+ {[%emt 0:00:00]} 46. Ke3 {[%emt 0:00:00]} Rc3+ {[%emt 0:00:00]} 47. Rd3 {[%emt 0:00:00]} Rc5 {[%emt 0:00:00]} 48. Kd4 {[%emt 0:00:00]} Rc1 {[%emt 0:00:00]} 49. Rc4 {[%emt 0:00:00]} Rxc4+ {[%emt 0:00:00]} 50. Kxc4 {[%emt 0:00:00]} Ra6 {[%emt 0:00:00]} 51. Bd1 {[%emt 0:00:00]} Rb6 {[%emt 0:00:00]} 52. h4 {[%emt 0:00:00]} Rb4+ {[%emt 0:00:00]} 53. Kc5 {[%emt 0:00:00]} Rb5+ {[%emt 0:00:00]} 54. Kc4 {[%emt 0:00:00]} Rd5 {[%emt 0:00:00]} 55. Bf3 {[%emt 0:00:00]} Rxd3 {[%emt 0:00:00]} 56. Kxd3 {[%emt 0:00:00]} c5 {[%emt 0:00:00]} 57. Kc4 {[%emt 0:00:00]} a4 {[%emt 0:00:00]} 58. Bd1 {[%emt 0:00:00]} Bc6 {[%emt 0:00:00]} 59. Kxc5 {[%emt 0:00:00]} a3 {[%emt 0:00:00]} 60. Bb3 {[%emt 0:00:00]} Bd5 {[%emt 0:00:00]} 61. Kb4 {[%emt 0:00:00]} a2 {[%emt 0:00:00]} 62. Bxa2 {[%emt 0:00:03]} Bxa2 {[%emt 0:00:00]} 0-1

[Event "Bergen Grand Prix 2019"]
[Site "Bergen"]
[Date "2019.11.17"]
[Round "4.8"]
[White "Sorhus, Jostein"]
[Black "Jacobsen, Hans-Henry"]
[Result "0-1"]
[ECO "A57"]
[WhiteElo "1630"]
[BlackElo "1646"]
[Annotator "NA RC"]
[PlyCount "96"]
[EventDate "2019.11.15"]
[EventType "swiss"]
[EventCountry "NOR"]
[SourceTitle "playchess.com"]
[Source "ChessBase"]
[SourceQuality "1"]
[TimeControl "40/5400:1800"]

1. d4 {[%emt 0:00:10]} Nf6 {[%emt 0:00:09]} 2. c4 {[%emt 0:00:12]} c5 {[%emt 0:00:07]} 3. d5 {[%emt 0:01:42]} b5 {[%emt 0:00:05]} 4. g3 {[%emt 0:00:17]} bxc4 {[%emt 0:00:20]} 5. Bg2 {[%emt 0:00:25]} d6 {[%emt 0:01:28]} 6. Nf3 {[%emt 0:00:55]} Nbd7 {[%emt 0:01:09]} 7. O-O {[%emt 0:03:32]} Nb6 {[%emt 0:01:34]} 8. Nc3 {[%emt 0:00:27]} g6 {[%emt 0:00:46]} 9. a4 {[%emt 0:00:20]} a5 {[%emt 0:01:58]} 10. e4 {[%emt 0:01:25]} Bg4 {[%emt 0:01:22]} 11. h3 {[%emt 0:01:10]} Bxf3 {[%emt 0:00:08]} 12. Bxf3 {[%emt 0:06:55]} Nfd7 {[%emt 0:02:14]} 13. Bf4 {[%emt 0:00:59]} Bg7 {[%emt 0:00:10]} 14. Qd2 {[%emt 0:03:05]} O-O {[%emt 0:00:55]} 15. Bh6 {[%emt 0:01:31]} Ne5 {[%emt 0:04:47]} 16. Be2 {[%emt 0:00:00]} Qc8 {[%emt 0:04:30]} 17. Kg2 {[%emt 0:00:12]} Qa6 {[%emt 0:01:59]} 18. Bxg7 {[%emt 0:00:22]} Kxg7 {[%emt 0:00:12]} 19. Nb5 {[%emt 0:00:41]} Rfc8 {[%emt 0:01:22]} 20. Qc3 {[%emt 0:02:37]} Kg8 {[%emt 0:00:52]} 21. b3 {[%emt 0:01:45]} cxb3 {[%emt 0:01:52]} 22. f4 {[%emt 0:01:02]} Ned7 {[%emt 0:01:12]} 23. Qxb3 {[%emt 0:07:44]} c4 {[%emt 0:02:20]} 24. Qc2 {[%emt 0:01:28]} Rab8 {[%emt 0:05:44]} 25. Nd4 {[%emt 0:02:22]} Nc5 {[%emt 0:02:41]} 26. Nc6 {[%emt 0:01:00]} Rb7 {[%emt 0:00:31]} 27. f5 {[%emt 0:00:53]} Nd3 {[%emt 0:02:54]} 28. Bg4 {[%emt 0:03:07]} Rcc7 {[%emt 0:00:58]} 29. Qd2 {[%emt 0:02:16]} Nxd5 {[%emt 0:02:01]} 30. Rab1 {[%emt 0:05:20]} Qxc6 {[%emt 0:05:38]} 31. exd5 {[%emt 0:00:35]} Qxa4 {[%emt 0:00:21]} 32. fxg6 {[%emt 0:01:41]} hxg6 {[%emt 0:00:32]} 33. Be2 {[%emt 0:17:17]} Ne5 {[%emt 0:02:07]} 34. Qh6 {[%emt 0:06:32]} Qa2 {[%emt 0:00:53]} 35. Rbe1 {[%emt 0:06:52]} Rb2 {[%emt 0:08:03]} 36. Rxf7 {[%emt 0:01:22]} Rxe2+ {[%emt 0:00:58]} 37. Rxe2 {[%emt 0:00:26]} Qxe2+ {[%emt 0:00:20]} 38. Rf2 {[%emt 0:00:14]} Qe4+ {[%emt 0:01:27]} 39. Kf1 {[%emt 0:01:06]} Nf3 {[%emt 0:00:53]} 40. Kg2 {[%emt 0:00:00]} Ne5+ {[%emt 0:00:00]} 41. Kh2 {[%emt 0:00:07]} Rc8 {[%emt 0:06:49]} 42. g4 {[%emt 0:09:07]} Rb8 {[%emt 0:01:14]} 43. Kg3 {[%emt 0:03:37]} Rb3+ {[%emt 0:04:59]} 44. Kh2 {[%emt 0:04:52]} Rf3 {[%emt 0:02:33]} 45. Qh4 {[%emt 0:02:39]} Qf4+ {[%emt 0:01:08]} 46. Kg2 {[%emt 0:00:34]} Rxf2+ {[%emt 0:00:08]} 47. Qxf2 {[%emt 0:00:09]} Qxf2+ {[%emt 0:00:10]} 48. Kxf2 {[%emt 0:00:07]} a4 {[%emt 0:00:15]} 0-1

[Event "Bergen Grand Prix 2019"]
[Site "Bergen"]
[Date "2019.11.17"]
[Round "4.9"]
[White "Sivertsen, Jarle"]
[Black "Breiland, John"]
[Result "1-0"]
[ECO "D55"]
[WhiteElo "1597"]
[BlackElo "1536"]
[Annotator "NA RC"]
[PlyCount "141"]
[EventDate "2019.11.15"]
[EventType "swiss"]
[EventCountry "NOR"]
[SourceTitle "playchess.com"]
[Source "ChessBase"]
[SourceQuality "1"]
[TimeControl "40/5400:1800"]

1. d4 {[%emt 0:00:02]} e6 {[%emt 0:01:29]} 2. c4 {[%emt 0:01:41]} Nf6 {[%emt 0:00:28]} 3. Bg5 {[%emt 0:00:34]} d5 {[%emt 0:00:29]} 4. e3 {[%emt 0:00:50]} c5 {[%emt 0:04:20]} 5. Nf3 {[%emt 0:02:07]} Be7 {[%emt 0:06:38]} 6. Nc3 {[%emt 0:00:25]} O-O {[%emt 0:00:50]} 7. Be2 {[%emt 0:01:36]} dxc4 {[%emt 0:06:53]} 8. dxc5 {[%emt 0:01:27]} Qa5 {[%emt 0:08:36]} 9. Qa4 {[%emt 0:02:03]} Qxc5 {[%emt 0:05:18]} 10. Qxc4 {[%emt 0:00:20]} Qxc4 {[%emt 0:03:29]} 11. Bxc4 {[%emt 0:00:08]} h6 {[%emt 0:00:14]} 12. Bh4 {[%emt 0:00:59]} a6 {[%emt 0:02:28]} 13. a4 {[%emt 0:04:00]} b6 {[%emt 0:04:36]} 14. O-O {[%emt 0:01:00]} Nc6 {[%emt 0:02:36]} 15. h3 {[%emt 0:02:20]} Bb7 {[%emt 0:00:22]} 16. Rfd1 {[%emt 0:02:33]} Rfd8 {[%emt 0:03:07]} 17. Ne2 {[%emt 0:01:58]} Na5 {[%emt 0:01:24]} 18. Ba2 {[%emt 0:07:41]} Bxf3 {[%emt 0:06:59]} 19. gxf3 {[%emt 0:00:07]} Rxd1+ {[%emt 0:03:48]} 20. Rxd1 {[%emt 0:00:10]} Rd8 {[%emt 0:00:48]} 21. Rxd8+ {[%emt 0:00:40]} Bxd8 {[%emt 0:00:01]} 22. b4 {[%emt 0:00:43]} Nc6 {[%emt 0:01:02]} 23. b5 {[%emt 0:00:36]} axb5 {[%emt 0:00:25]} 24. axb5 {[%emt 0:00:09]} Ne7 {[%emt 0:04:43]} 25. Bg3 {[%emt 0:00:41]} Nf5 {[%emt 0:00:30]} 26. Bh2 {[%emt 0:04:01]} Nd7 {[%emt 0:01:47]} 27. Kg2 {[%emt 0:02:44]} Nh4+ {[%emt 0:01:06]} 28. Kg3 {[%emt 0:01:39]} g5 {[%emt 0:00:07]} 29. f4 {[%emt 0:01:17]} Bc7 {[%emt 0:00:57]} 30. f3 {[%emt 0:04:41]} Nf6 {[%emt 0:01:16]} 31. Kf2 {[%emt 0:03:37]} Nh5 {[%emt 0:00:39]} 32. Bc4 {[%emt 0:06:49]} Ng6 {[%emt 0:00:46]} 33. f5 {[%emt 0:04:42]} Bxh2 {[%emt 0:01:16]} 34. fxg6 {[%emt 0:00:19]} Bd6 {[%emt 0:03:00]} 35. gxf7+ {[%emt 0:00:38]} Kxf7 {[%emt 0:00:02]} 36. Nc3 {[%emt 0:01:36]} Ke7 {[%emt 0:01:53]} 37. Ne4 {[%emt 0:01:02]} Bc7 {[%emt 0:00:16]} 38. Ke2 {[%emt 0:00:54]} Ng3+ {[%emt 0:01:57]} 39. Kd3 {[%emt 0:01:10]} Nf5 {[%emt 0:00:12]} 40. Ke2 {[%emt 0:01:13]} Bh2 {[%emt 0:01:16]} 41. Bd3 {[%emt 0:36:12]} Bg1 {[%emt 0:02:35]} 42. Nf2 {[%emt 0:00:00]} Bxf2 {[%emt 0:02:04]} 43. Kxf2 {[%emt 0:00:00]} Kd6 {[%emt 0:00:04]} 44. f4 {[%emt 0:00:00]} gxf4 {[%emt 0:00:38]} 45. exf4 {[%emt 0:00:00]} Kc5 {[%emt 0:00:10]} 46. Kf3 {[%emt 0:00:00]} Nd4+ {[%emt 0:00:27]} 47. Kg4 {[%emt 0:00:00]} Nxb5 {[%emt 0:00:19]} 48. Kh5 {[%emt 0:00:00]} Nd4 {[%emt 0:01:39]} 49. Kxh6 {[%emt 0:00:00]} b5 {[%emt 0:00:01]} 50. h4 {[%emt 0:00:00]} b4 {[%emt 0:00:01]} 51. h5 {[%emt 0:00:00]} b3 {[%emt 0:00:07]} 52. Kg6 {[%emt 0:00:00]} Nc2 {[%emt 0:00:34]} 53. h6 {[%emt 0:00:00]} Kd4 {[%emt 0:00:02]} 54. h7 {[%emt 0:00:00]} Kxd3 {[%emt 0:01:17]} 55. h8=Q {[%emt 0:00:00]} Nd4 {[%emt 0:00:39]} 56. Qh1 {[%emt 0:00:00]} b2 {[%emt 0:01:16]} 57. Qd1+ {[%emt 0:00:00]} Kc3 {[%emt 0:06:26]} 58. Kf6 {[%emt 0:03:05]} Nb3 {[%emt 0:02:25]} 59. Kxe6 {[%emt 0:02:40]} Nc1 {[%emt 0:00:39]} 60. Qe1+ {[%emt 0:00:44]} Kc2 {[%emt 0:02:19]} 61. Qe4+ {[%emt 0:00:09]} Nd3 {[%emt 0:00:11]} 62. Qc4+ {[%emt 0:00:10]} Kd2 {[%emt 0:00:34]} 63. Qa2 {[%emt 0:02:41]} Nxf4+ {[%emt 0:00:06]} 64. Ke5 {[%emt 0:00:44]} Nd3+ {[%emt 0:00:02]} 65. Kd4 {[%emt 0:00:21]} Kc2 {[%emt 0:00:47]} 66. Qc4+ {[%emt 0:00:24]} Kb1 {[%emt 0:00:26]} 67. Qxd3+ {[%emt 0:00:04]} Ka2 {[%emt 0:00:12]} 68. Qc2 {[%emt 0:00:15]} Ka1 {[%emt 0:00:24]} 69. Qa4+ {[%emt 0:00:03]} Kb1 {[%emt 0:00:09]} 70. Kc3 {[%emt 0:00:04]} Kc1 {[%emt 0:00:07]} 71. Qc2# {[%emt 0:00:03]} 1-0

[Event "Bergen Grand Prix 2019"]
[Site "Bergen"]
[Date "2019.11.17"]
[Round "4.11"]
[White "Wallevik, Karl"]
[Black "Hella, Jonas Saterlid"]
[Result "1-0"]
[ECO "C45"]
[WhiteElo "1186"]
[BlackElo "1163"]
[Annotator "NA RC"]
[PlyCount "120"]
[EventDate "2019.11.15"]
[EventType "swiss"]
[EventCountry "NOR"]
[SourceTitle "playchess.com"]
[Source "ChessBase"]
[SourceQuality "1"]
[TimeControl "40/5400:1800"]

1. e4 {[%emt 0:00:02]} e5 {[%emt 0:00:11]} 2. Nf3 {[%emt 0:00:07]} Nc6 {[%emt 0:00:55]} 3. d4 {[%emt 0:00:45]} exd4 {[%emt 0:00:00]} 4. Nxd4 {[%emt 0:00:10]} Nxd4 {[%emt 0:00:30]} 5. Qxd4 {[%emt 0:00:36]} Qf6 {[%emt 0:00:00]} 6. e5 {[%emt 0:04:16]} Qc6 {[%emt 0:01:52]} 7. Nc3 {[%emt 0:04:30]} Qc5 {[%emt 0:00:54]} 8. Qf4 {[%emt 0:01:55]} d5 {[%emt 0:02:45]} 9. Bb5+ {[%emt 0:02:22]} c6 {[%emt 0:00:18]} 10. Be3 {[%emt 0:00:14]} Qb4 {[%emt 0:00:36]} 11. Qxb4 {[%emt 0:03:13]} Bxb4 {[%emt 0:00:10]} 12. Ba4 {[%emt 0:01:03]} Bxc3+ {[%emt 0:00:16]} 13. bxc3 {[%emt 0:00:05]} b5 {[%emt 0:00:26]} 14. Bb3 {[%emt 0:00:04]} Be6 {[%emt 0:00:21]} 15. Bc5 {[%emt 0:00:24]} a5 {[%emt 0:00:27]} 16. a4 {[%emt 0:02:43]} Rb8 {[%emt 0:00:29]} 17. O-O {[%emt 0:00:39]} Ne7 {[%emt 0:02:22]} 18. h3 {[%emt 0:04:59]} Ng6 {[%emt 0:00:47]} 19. axb5 {[%emt 0:02:03]} Rxb5 {[%emt 0:00:16]} 20. Bd6 {[%emt 0:00:11]} Kd7 {[%emt 0:02:25]} 21. Rfd1 {[%emt 0:01:58]} Ra8 {[%emt 0:01:25]} 22. Ra4 {[%emt 0:03:07]} Nf8 {[%emt 0:01:45]} 23. c4 {[%emt 0:03:35]} Rb6 {[%emt 0:04:00]} 24. Bxf8 {[%emt 0:01:55]} Rxf8 {[%emt 0:00:10]} 25. Rxa5 {[%emt 0:00:09]} Kc7 {[%emt 0:02:46]} 26. cxd5 {[%emt 0:04:18]} cxd5 {[%emt 0:00:28]} 27. Bxd5 {[%emt 0:02:48]} Bxd5 {[%emt 0:00:59]} 28. Rdxd5 {[%emt 0:00:08]} Rb1+ {[%emt 0:00:16]} 29. Kh2 {[%emt 0:00:08]} Rb2 {[%emt 0:00:31]} 30. Rac5+ {[%emt 0:00:16]} Kb6 {[%emt 0:00:17]} 31. Rc3 {[%emt 0:00:55]} f6 {[%emt 0:00:26]} 32. Rd6+ {[%emt 0:03:32]} Kb5 {[%emt 0:00:31]} 33. Rb3+ {[%emt 0:01:11]} Rxb3 {[%emt 0:00:14]} 34. cxb3 {[%emt 0:00:20]} fxe5 {[%emt 0:00:27]} 35. Kg3 {[%emt 0:01:37]} Rf7 {[%emt 0:00:00]} 36. Rd2 {[%emt 0:00:43]} Kb4 {[%emt 0:00:28]} 37. Rd3 {[%emt 0:00:41]} g6 {[%emt 0:01:16]} 38. f3 {[%emt 0:00:08]} h5 {[%emt 0:00:36]} 39. Kf2 {[%emt 0:00:23]} g5 {[%emt 0:00:26]} 40. Ke3 {[%emt 0:00:56]} h4 {[%emt 0:00:43]} 41. Ke4 {[%emt 0:30:23]} Rc7 {[%emt 0:30:17]} 42. Kxe5 {[%emt 0:00:53]} Rc2 {[%emt 0:00:08]} 43. Rd4+ {[%emt 0:02:52]} Kxb3 {[%emt 0:00:12]} 44. Rg4 {[%emt 0:00:06]} Rc5+ {[%emt 0:00:26]} 45. Kf6 {[%emt 0:00:18]} Kc3 {[%emt 0:00:54]} 46. Rxg5 {[%emt 0:00:13]} Rxg5 {[%emt 0:00:05]} 47. Kxg5 {[%emt 0:00:18]} Kd4 {[%emt 0:00:04]} 48. Kxh4 {[%emt 0:00:08]} Ke5 {[%emt 0:00:04]} 49. g4 {[%emt 0:00:10]} Kf6 {[%emt 0:00:05]} 50. Kh5 {[%emt 0:00:20]} Kg7 {[%emt 0:00:06]} 51. f4 {[%emt 0:00:04]} Kg8 {[%emt 0:00:04]} 52. Kg6 {[%emt 0:00:11]} Kf8 {[%emt 0:00:05]} 53. f5 {[%emt 0:00:07]} Kg8 {[%emt 0:00:04]} 54. h4 {[%emt 0:00:07]} Kf8 {[%emt 0:00:04]} 55. h5 {[%emt 0:00:13]} Kg8 {[%emt 0:00:02]} 56. h6 {[%emt 0:00:19]} Kh8 {[%emt 0:00:07]} 57. f6 {[%emt 0:00:13]} Kg8 {[%emt 0:00:03]} 58. f7+ {[%emt 0:00:27]} Kf8 {[%emt 0:00:07]} 59. h7 {[%emt 0:00:10]} Ke7 {[%emt 0:00:03]} 60. h8=Q {[%emt 0:00:31]} Kd6 {[%emt 0:00:00]} 1-0

[Event "Bergen Grand Prix 2019"]
[Site "Bergen"]
[Date "2019.11.17"]
[Round "4.12"]
[White "Fiskaaen, Martin Holten"]
[Black "Hestholm, Freddy"]
[Result "1-0"]
[ECO "C42"]
[WhiteElo "1190"]
[BlackElo "1240"]
[Annotator "NA RC"]
[PlyCount "113"]
[EventDate "2019.11.15"]
[EventType "swiss"]
[EventCountry "NOR"]
[SourceTitle "playchess.com"]
[Source "ChessBase"]
[SourceQuality "1"]
[TimeControl "40/5400:1800"]

1. e4 {[%emt 0:00:05]} e5 {[%emt 0:00:05]} 2. Nf3 {[%emt 0:00:10]} Nf6 {[%emt 0:00:11]} 3. Nxe5 {[%emt 0:00:18]} d6 {[%emt 0:00:01]} 4. Nf3 {[%emt 0:00:15]} Nxe4 {[%emt 0:00:09]} 5. Nc3 {[%emt 0:00:51]} Nxc3 {[%emt 0:00:07]} 6. dxc3 {[%emt 0:00:07]} Be7 {[%emt 0:00:08]} 7. Be3 {[%emt 0:01:12]} Nc6 {[%emt 0:01:55]} 8. Bc4 {[%emt 0:04:07]} Be6 {[%emt 0:01:37]} 9. Bxe6 {[%emt 0:00:42]} fxe6 {[%emt 0:00:13]} 10. Nd4 {[%emt 0:00:32]} Qd7 {[%emt 0:00:30]} 11. Qg4 {[%emt 0:04:24]} Nxd4 {[%emt 0:05:37]} 12. Bxd4 {[%emt 0:10:37]} Rg8 {[%emt 0:01:51]} 13. Qh5+ {[%emt 0:08:41]} g6 {[%emt 0:01:15]} 14. Qxh7 {[%emt 0:05:11]} O-O-O {[%emt 0:00:39]} 15. Qh3 {[%emt 0:00:52]} e5 {[%emt 0:06:16]} 16. Qxd7+ {[%emt 0:00:15]} Rxd7 {[%emt 0:00:08]} 17. Be3 {[%emt 0:00:31]} e4 {[%emt 0:01:31]} 18. O-O-O {[%emt 0:01:27]} d5 {[%emt 0:00:38]} 19. b4 {[%emt 0:08:39]} a6 {[%emt 0:03:33]} 20. Kb2 {[%emt 0:03:57]} b5 {[%emt 0:01:23]} 21. Kb3 {[%emt 0:02:35]} c6 {[%emt 0:01:46]} 22. a4 {[%emt 0:01:04]} Kc7 {[%emt 0:00:51]} 23. axb5 {[%emt 0:01:22]} cxb5 {[%emt 0:02:55]} 24. Bd4 {[%emt 0:01:20]} Rf8 {[%emt 0:02:16]} 25. Ra1 {[%emt 0:00:35]} Kb7 {[%emt 0:00:40]} 26. Ra2 {[%emt 0:00:25]} Bf6 {[%emt 0:00:36]} 27. Bc5 {[%emt 0:01:00]} Ra8 {[%emt 0:01:24]} 28. Ra3 {[%emt 0:00:56]} g5 {[%emt 0:01:06]} 29. Rd1 {[%emt 0:00:54]} g4 {[%emt 0:01:09]} 30. Be3 {[%emt 0:01:03]} Rh8 {[%emt 0:00:36]} 31. Bf4 {[%emt 0:01:08]} Rc8 {[%emt 0:00:46]} 32. Kb2 {[%emt 0:01:46]} Rc4 {[%emt 0:05:09]} 33. Rb3 {[%emt 0:02:43]} d4 {[%emt 0:03:44]} 34. Kb1 {[%emt 0:02:29]} d3 {[%emt 0:01:47]} 35. Kb2 {[%emt 0:03:19]} Kc6 {[%emt 0:06:14]} 36. cxd3 {[%emt 0:01:38]} Rxd3 {[%emt 0:04:06]} 37. Rxd3 {[%emt 0:00:23]} exd3 {[%emt 0:00:24]} 38. Bd2 {[%emt 0:01:15]} Kd5 {[%emt 0:01:39]} 39. Kc1 {[%emt 0:01:15]} a5 {[%emt 0:03:16]} 40. bxa5 {[%emt 0:01:51]} Ra4 {[%emt 0:00:46]} 41. Rxb5+ {[%emt 0:30:57]} Kc4 {[%emt 0:30:17]} 42. Rb4+ {[%emt 0:00:21]} Rxb4 {[%emt 0:00:36]} 43. cxb4 {[%emt 0:00:09]} Kb5 {[%emt 0:07:45]} 44. f3 {[%emt 0:00:15]} gxf3 {[%emt 0:01:22]} 45. gxf3 {[%emt 0:00:09]} Bh4 {[%emt 0:00:19]} 46. Kd1 {[%emt 0:00:28]} Be7 {[%emt 0:01:13]} 47. h3 {[%emt 0:00:27]} Bh4 {[%emt 0:01:12]} 48. f4 {[%emt 0:00:13]} Be7 {[%emt 0:00:08]} 49. f5 {[%emt 0:00:10]} Bf6 {[%emt 0:01:57]} 50. Be1 {[%emt 0:00:15]} Bg5 {[%emt 0:02:50]} 51. h4 {[%emt 0:00:14]} Bf6 {[%emt 0:00:35]} 52. h5 {[%emt 0:00:16]} Bg5 {[%emt 0:00:08]} 53. Bd2 {[%emt 0:00:33]} Bf6 {[%emt 0:00:27]} 54. h6 {[%emt 0:00:31]} Ka6 {[%emt 0:00:17]} 55. Be3 {[%emt 0:01:04]} Bc3 {[%emt 0:00:53]} 56. Bc5 {[%emt 0:00:16]} Bf6 {[%emt 0:00:24]} 57. Bf8 {[%emt 0:00:29]} 1-0